Cogmind - Beta 14 @@@ ROGUE MODE // 2024.10.20 @ 13:03:49 Player: laeb2 Result: Destroyed by H-61 Shepherd with Heavy Assault Cannon Performance ------------- Evolutions (4) 2000 Regions Visited (5) 1000 Robots Destroyed (24) 120 Value Destroyed (749) 749 Prototype IDs (13) 260 Alien Tech Used (0) 0 Bonus (300) 300 TOTAL SCORE: 4429 Bonus ------- Registered with UFD 300 Cogmind --------- Core Integrity 0/850 Matter 240/300 Energy 64/100 System Corruption 0% Temperature Cool (23) Movement Core (350) Ox6 Location -6/Factory Parts ------- > --- POWER (1) -------- (None) > --- PROPULSION (4) --- (None) > --- UTILITY (8) ------ Large Storage Unit Targeting Computer A0-MCA's Component Scanner > --- WEAPON (2) ------- (None) > --- INVENTORY (15) --- Particle Cannon Subdweller Beam Cannon Phase Cannon Gauss Rifle Improved Datajack CPS Tube (2) CPS Tube (1) DRS Beacon (Ready) Peak State ------------ > --- POWER ------------ Light Fission Core > --- PROPULSION ------- Light Treads Improved Treads Medium Treads Improved Medium Treads > --- UTILITY ---------- Scrap Suit Advanced Cryofiber Web Advanced Heat Sink Large Storage Unit Improved Targeting Computer Improved Light Armor Plating A0-MCA's Component Scanner > --- WEAPON ----------- Gauss Rifle Gauss Rifle > --- INVENTORY -------- Improved Deuterium Engine Targeting Computer Phase Shifter Medium Laser Particle Cannon Subdweller Beam Cannon Phase Cannon Gauss Rifle Gauss Rifle Flak Gun Grenade Launcher Improved Datajack CPS Tube CPS Tube DRS Beacon [Rating: 64] Favorites ----------- Power Light Ion Engine Engine Light Ion Engine Power Core Light Fission Core Propulsion Light Treads Treads Light Treads Leg Aluminum Leg Utility Large Storage Unit Device Scrap Suit Storage Large Storage Unit Processor A0-MCA's Component Scanner Protection Light Armor Plating Weapon Medium Laser Energy Gun Medium Laser Energy Cannon Subdweller Beam Cannon Ballistic Gun Gauss Rifle Launcher Grenade Launcher Special Weapon CPS Tube Build | -11 -10 -10 -9 -9 -6 ------- Run | Yrd Mat Sub Rec Scr Fac Slots Evolved 8 | . . . . . 8 Power . | . . . . . . Propulsion 2 | . . . . . 2 Utility 6 | . . . . . 6 Weapon . | . . . . . . Parts Attached 41 | 5 6 1 5 1 23 Power 4 | . 2 . . . 2 Engine 3 | . 2 . . . 1 Core 1 | . . . . . 1 Reactor . | . . . . . . Propulsion 8 | 2 1 . 2 . 3 Treads 5 | . . . 2 . 3 Leg 3 | 2 1 . . . . Wheel . | . . . . . . Hover . | . . . . . . Flight . | . . . . . . Utility 15 | 1 2 . 2 1 9 Device 6 | . 1 . . . 5 Storage 2 | 1 . . 1 . . Processor 3 | . . . . 1 2 Hackware . | . . . . . . Protection 4 | . 1 . 1 . 2 Artifact . | . . . . . . Weapon 14 | 2 1 1 1 . 9 Energy Gun 5 | 2 1 1 . . 1 Energy Cannon 2 | . . . 1 . 1 Ballistic Gun 5 | . . . . . 5 Ballistic Cannon . | . . . . . . Launcher 1 | . . . . . 1 Special Weapon 1 | . . . . . 1 Impact Weapon . | . . . . . . Slashing Weapon . | . . . . . . Piercing Weapon . | . . . . . . Special Melee Weapon . | . . . . . . Unidentified Prototypes . | . . . . . . Parts Lost 22 | . . 2 1 . 19 Power 2 | . . . . . 2 Propulsion 5 | . . . 1 . 4 Utility 8 | . . 1 . . 7 Weapon 7 | . . 1 . . 6 Highest Loss Streak 18 | . . 1 1 . 18 To Critical Strikes 1 | . . . . . 1 Average Slot Usage (%) 95 | . 100 95 80 99 80 Engine 12 | . 14 14 14 14 2 Treads 19 | . . . 5 28 22 Leg 7 | . 28 28 15 . . Device 2 | . 5 . . . 13 Storage 13 | . 14 14 14 14 6 Processor 4 | . . . . 5 10 Protection 7 | . 8 9 2 8 6 Energy Gun 15 | . 28 27 18 14 1 Energy Cannon 10 | . . . 9 14 9 Peak Build Rating 64 | 5 10 8 10 20 64 Average Rating 15 | 2 8 7 7 13 48 On Entrance 8 | . 5 8 7 10 20 Naked Turns . | . . . . . . Heaviest Build 52 | 8 17 15 36 36 52 Greatest Support 101 | 20 20 20 43 43 101 Greatest Overweight (x) 2 | . . . 2 . . Average Overweight (x) . | . . . . . . Largest Inventory Capacity 15 | 8 8 8 15 15 15 Average Capacity 12 | 7 8 8 9 15 15 Most Carried 15 | 7 8 8 8 15 15 Average Carried 10 | 5 7 7 8 10 13 Final Capacity 15 | 8 8 8 15 15 15 Final Carried 15 | 7 8 8 8 15 8 Class Distribution -------------------- 100% | Mutant Dominant Class ---------------- Mutant | -10/Materials Mutant | -10/Subcaves Mutant | -9/Recycling Mutant | -9/Scraptown Mutant | -6/Factory Resources | -11 -10 -10 -9 -9 -6 ----------- Run | Yrd Mat Sub Rec Scr Fac Matter Collected 581 | 214 115 30 10 40 172 Remotely . | . . . . . . Salvage Created 956 | 26 331 139 60 . 400 Parts 59 | 7 17 9 1 . 25 Haulers Intercepted 2 | . 1 . . . 1 Recyclers Shooed 1 | . . . . . 1 Parts Field Recycled . | . . . . . . Retrieved Matter . | . . . . . . Parts Self-Destructed 7 | . . 7 . . . Prevented . | . . . . . . Kills | -11 -10 -10 -9 -9 -6 ------- Run | Yrd Mat Sub Rec Scr Fac Combat Hostiles Destroyed 16 | . 6 4 1 . 5 Melee 1 | . . . . . 1 Guns 11 | . 6 4 . . 1 Cannons 4 | . . . 1 . 3 Classes Destroyed 11 | 1 3 3 1 . 3 Worker 1 | . . . . . 1 Tunneler 2 | 2 . . . . . Hauler 2 | . 1 . . . 1 Turret 2 | . . 2 . . . Watcher 1 | . 1 . . . . Swarmer 3 | . . 3 . . . Grunt 7 | . 6 . . . 1 Duelist 1 | . . . . . 1 Sentry 2 | . . . 1 . 1 Hunter 2 | . . . . . 2 Subdweller 1 | . . 1 . . . Best Kill Streak 4 | 2 3 4 1 . 2 Combat Bots Only 3 | . 2 3 1 . 2 Max Kills in Single Turn 1 | 1 1 1 1 . 1 Gunslinging . | . . . . . . Exploded . | . . . . . . Melee 1 | . . . . . 1 Uniques/NPCs Destroyed . | . . . . . . Combat | -11 -10 -10 -9 -9 -6 -------- Run | Yrd Mat Sub Rec Scr Fac Hostile Shots Fired 351 | . 28 76 4 . 243 Missed 106 | . 10 24 2 . 70 Damage Taken 4116 | . 218 466 30 . 3402 Core 1083 | . 73 106 . . 904 Absorbed by Shields . | . . . . . . Regen/Repaired (Parts) 336 | . . . . 325 11 Core Remaining (%) 64 | 100 . . . 28 . Volleys Fired 94 | 2 28 25 4 . 35 Largest 2 | 2 2 2 2 . 2 Hottest 165 | 90 100 100 130 . 165 Shots Fired 175 | 4 56 49 8 . 58 Gun 133 | 4 56 49 4 . 20 Cannon 39 | . . . 4 . 35 Launcher 2 | . . . . . 2 Special 1 | . . . . . 1 Kinetic 19 | . . . . . 19 Thermal 153 | 4 56 49 8 . 36 Explosive 2 | . . . . . 2 Electromagnetic . | . . . . . . Robot Hit Streak 13 | 2 7 9 8 . 13 Robot Miss Streak 4 | . 3 3 1 . 4 Penetration Max 1 | . . . . . 1 Secondary Targets . | . . . . . . Shots Hit Robots 120 | 2 34 32 7 . 45 Core Hits 54 | 2 17 11 2 . 22 Critical Kills . | . . . . . . Critical Parts Destroyed . | . . . . . . Critical Strikes 7 | . 3 4 . . . Burn 7 | . 3 4 . . . Melee Attacks . | . . . . . . Impact . | . . . . . . Slashing . | . . . . . . Piercing . | . . . . . . Sneak Attacks . | . . . . . . Combat Hostiles . | . . . . . . Follow-up Attacks . | . . . . . . Damage Inflicted 2297 | 24 440 399 137 . 1297 Guns 1229 | 24 439 399 52 . 315 Cannons 915 | . . . 85 . 830 Explosions 138 | . . . . . 138 Melee . | . . . . . . Ramming 15 | . 1 . . . 14 Kinetic 301 | . . . . . 301 Thermal 1843 | 24 439 399 137 . 844 Explosive 138 | . . . . . 138 Electromagnetic . | . . . . . . Impact . | . . . . . . Slashing . | . . . . . . Piercing . | . . . . . . Highest Corruption . | . . . . . . Average Corruption . | . . . . . . Corruption Purged . | . . . . . . Corruption Blocked . | . . . . . . Overload Shots . | . . . . . . Overflow Damage 8 | . . . . . 8 Projectiles 8 | . . . . . 8 Explosions . | . . . . . . Melee . | . . . . . . Knockbacks 1 | . . . . . 1 Impact 1 | . . . . . 1 Kinetic . | . . . . . . Secondary . | . . . . . . Self-Inflicted Damage 21 | . . . . . 21 Shots 1 | . . . . . 1 Rammed 3 | . . . . . 3 Targets Rammed 5 | . 1 . . . 4 Kicked 1 | . 1 . . . . Crushed 1 | . . . . . 1 Highest Temperature 399 | 30 399 11 227 . 117 Average Temperature 107 | 16 131 5 118 . 39 Received Heat Transfer 1206 | . 123 234 18 . 831 Effects 1 | . 1 . . . . Matter Decay 1 | . 1 . . . . Siege Activations . | . . . . . . Robots Corrupted . | . . . . . . Combat Hostiles . | . . . . . . Parts Fried . | . . . . . . Impact Corruptions . | . . . . . . Robots Melted . | . . . . . . Combat Hostiles . | . . . . . . Parts Melted 9 | . 6 . 1 . 2 Heat Transferred 4342 | 50 1480 1480 259 . 1073 Parts Sabotaged . | . . . . . . Parts Stolen . | . . . . . . Parts Stripped . | . . . . . . Power Chain Reactions . | . . . . . . Alert | -11 -10 -10 -9 -9 -6 ------- Run | Yrd Mat Sub Rec Scr Fac Peak Influence 272 | 10 272 . 122 . 92 Initial 86 | . 6 . 86 . . Average 51 | 2 72 . 68 . 17 Maximum Alert Level 1 | . 1 . . . . Low Security (%) 95 | 100 88 . 100 . 100 Level 1 4 | . 11 . . . . Level 2 . | . . . . . . Level 3 . | . . . . . . Level 4 . | . . . . . . Level 5 . | . . . . . . High Security . | . . . . . . Max Security . | . . . . . . Squads Dispatched 6 | . 2 . . . 4 Investigation 4 | . 1 . . . 3 Extermination . | . . . . . . Reinforcement 2 | . 1 . . . 1 Assault . | . . . . . . Garrison . | . . . . . . Intercept . | . . . . . . Searches Triggered . | . . . . . . Construction Impeded 1 | . . . . . 1 Haulers Reinforced . | . . . . . . Active Scanning Responses . | . . . . . . Cargo Convoy Interrupts . | . . . . . . Stealth | -11 -10 -10 -9 -9 -6 --------- Run | Yrd Mat Sub Rec Scr Fac Distress Signals . | . . . . . . Communications Jammed . | . . . . . . Distress Signals . | . . . . . . Times Spotted 31 | . 8 7 1 . 15 Peak Tracking Total 9 | . 3 4 1 . 9 Tactical Retreats 4 | . 1 3 . . . Traps | -11 -10 -10 -9 -9 -6 ------- Run | Yrd Mat Sub Rec Scr Fac Traps Triggered 2 | . . . . . 2 Indirectly . | . . . . . . Trap Hack Attempts . | . . . . . . Triggered . | . . . . . . Disarmed . | . . . . . . Reprogrammed . | . . . . . . Reused . | . . . . . . Traps Extracted . | . . . . . . Installed . | . . . . . . Triggered . | . . . . . . Machines | -11 -10 -10 -9 -9 -6 ---------- Run | Yrd Mat Sub Rec Scr Fac Machines Disabled 3 | . 1 2 . . . Max in Single Turn 1 | . 1 1 . . . Machines Repaired . | . . . . . . Machines Dismantled . | . . . . . . Machines Sabotaged . | . . . . . . Overloaded Fab Kills . | . . . . . . Hacking | -11 -10 -10 -9 -9 -6 --------- Run | Yrd Mat Sub Rec Scr Fac Machines Accessed 18 | . 3 . 4 6 5 Terminals 7 | . 3 . 3 . 1 Fabricators 2 | . . . . . 2 Repair Stations . | . . . . . . Recycling Units 3 | . . . 1 . 2 Scanalyzers . | . . . . . . Garrison Access . | . . . . . . Total Hacks 50 | . 12 . 7 21 10 Successful 37 | . 4 . 6 21 6 Failed 12 | . 7 . 1 . 4 Catastrophic 1 | . . . . . 1 Database Lockouts 1 | . 1 . . . . Manual 18 | . 9 . 3 . 6 Terminals 18 | . 12 . 5 . 1 Fabricators 4 | . . . . . 4 Repair Stations . | . . . . . . Recycling Units 7 | . . . 2 . 5 Scanalyzers . | . . . . . . Garrison Access . | . . . . . . Terminal Hacks 29 | . 3 . 4 21 1 Record 15 | . . . . 15 . Robot Analysis 7 | . 1 . 1 5 . Prototype ID Bank 1 | . . . 1 . . Open DSF 1 | . . . . . 1 Alert Level 2 | . 1 . 1 . . Unreport Threat 1 | . 1 . . . . Zone Layout 1 | . . . 1 . . Derelict Proto ID Bank 1 | . . . . 1 . Fabricator Hacks 2 | . . . . . 2 Network Status 2 | . . . . . 2 Repair Station Hacks . | . . . . . . Recycling Unit Hacks 2 | . . . 2 . . Report Inventory 1 | . . . 1 . . Retrieve Components 1 | . . . 1 . . Scanalyzer . | . . . . . . Garrison Access Hacks . | . . . . . . Unauthorized Hacks 4 | . 1 . . . 3 Terminals 1 | . 1 . . . . Operators 1 | . 1 . . . . Fabricators 1 | . . . . . 1 Download 1 | . . . . . 1 Repair Stations 2 | . . . . . 2 Recycling Units . | . . . . . . Fedlink 2 | . . . . . 2 Scanalyzers . | . . . . . . Garrison Access . | . . . . . . Data Cores Recovered . | . . . . . . Used . | . . . . . . Hacking Detections 7 | . 3 . 1 . 3 Full Trace Events 1 | . 1 . . . . Feedback Events . | . . . . . . Feedback Blocked . | . . . . . . Robot Schematics Acquired 1 | . . . . . 1 Robots Built . | . . . . . . Authchips . | . . . . . . Time . | . . . . . . Total Robot Build Rating . | . . . . . . Part Schematics Acquired . | . . . . . . Parts Built . | . . . . . . Authchips . | . . . . . . Time . | . . . . . . Total Part Build Rating . | . . . . . . Parts Repaired . | . . . . . . Time . | . . . . . . Parts Recycled . | . . . . . . Recycled Matter . | . . . . . . Retrieved Matter . | . . . . . . Retrieved Components 1 | . . . 1 . . Parts Scanalyzed . | . . . . . . Part Schematics Acquired . | . . . . . . Parts Damaged . | . . . . . . Bothacking | -11 -10 -10 -9 -9 -6 ------------ Run | Yrd Mat Sub Rec Scr Fac Used RIF Installer . | . . . . . . Robots Hacked . | . . . . . . Non-combat . | . . . . . . Combat . | . . . . . . Robot Hacks Applied . | . . . . . . Relay Couplers Released . | . . . . . . Fabnet Peak Effective % . | . . . . . . Robots Rewired . | . . . . . . Allies Hacked . | . . . . . . Hacks Repelled . | . . . . . . Allies | -11 -10 -10 -9 -9 -6 -------- Run | Yrd Mat Sub Rec Scr Fac Total Allies . | . . . . . . Largest Group . | . . . . . . Highest-Rated Group . | . . . . . . Highest-Rated Ally . | . . . . . . Total Orders . | . . . . . . Ally Attacks . | . . . . . . Total Damage . | . . . . . . Kills . | . . . . . . Allies Corrupted . | . . . . . . Allies Melted . | . . . . . . Intel | -11 -10 -10 -9 -9 -6 ------- Run | Yrd Mat Sub Rec Scr Fac Robot Analysis Total 7 | . 1 . 1 5 . Derelict Logs Recovered 3 | . . 1 . 2 . Drone Launches . | . . . . . . Drone Recoveries . | . . . . . . Exploration | -11 -10 -10 -9 -9 -6 ------------- Run | Yrd Mat Sub Rec Scr Fac Turns Passed 5770 | 96 818 384 585 3257 630 Spaces Moved 3080 | 66 208 247 349 1948 262 Core 15 | 15 . . . . . Treads 2277 | . . . 67 1948 262 Legs 788 | 51 208 247 282 . . Wheels . | . . . . . . Hover . | . . . . . . Flight . | . . . . . . Fastest Speed 50 | 50 120 120 120 160 160 Average Speed 152 | 104 120 120 155 160 160 Slowest Speed 260 | 120 120 120 260 160 160 Overloaded Moves . | . . . . . . Propulsion Burnouts . | . . . . . . Robots Hopped . | . . . . . . Cave-ins Triggered . | . . . . . . Exploration Rate (%) 34 | 3 34 15 50 95 8 Regions Visited 5 Branch Regions 3 Pre-discovered Areas 2 | . . . . 2 . Known Exits Taken . | . . . . . . Unknown Exits Taken 5 | 1 1 1 1 1 . Scrap Searched 4 | . . . . 4 . Spaces Dug . | . . . . . . Terrain Destroyed 18 | . 10 . 1 . 7 Melee . | . . . . . . Projectile 5 | . . . 1 . 4 AOE 13 | . 10 . . . 3 Terrain Rammed . | . . . . . . Walls Destroyed . | . . . . . . Machines Disabled . | . . . . . . Actions | -11 -10 -10 -9 -9 -6 --------- Run | Yrd Mat Sub Rec Scr Fac Total 3977 | 89 720 286 382 2089 411 Wait 709 | 6 469 11 22 134 67 Move 3075 | 65 207 246 348 1947 262 Hop . | . . . . . . Pick Up 38 | 11 5 2 1 6 13 Fast Attach 7 | 1 1 . 2 . 3 Attach 21 | 4 2 1 . 1 13 Detach 1 | . . . . 1 . Swap 13 | . 3 . 3 . 7 Drop 14 | . 4 1 2 . 7 Fire 94 | 2 28 25 4 . 35 Melee . | . . . . . . Ram . | . . . . . . Kick 1 | . 1 . . . . Crush 4 | . . . . . 4 Escape Stasis . | . . . . . . Rewire . | . . . . . . Trap . | . . . . . . Miscellaneous . | . . . . . . Route ------- -11/Scrapyard -10/Materials -10/Subcaves -9/Recycling -9/Scraptown (discovered 2 exits: *Fac x2) -6/Factory History --------- Turn | Location | Event 7 | -11/Scrapyard | Discovered new exit (range 13) 97 | -11/Scrapyard | Entered Materials 260 | -10/Materials | Central database locked down 311 | -10/Materials | Build established: Mutant 890 | -10/Materials | Discovered new exit (range 6) 915 | -10/Materials | Entered Subcaves 918 | -10/Subcaves | Shifting Twisted Machinery released Sub. Beam Cannon 938 | -10/Subcaves | Shifting Twisted Machinery released Battle Rifle 938 | -10/Subcaves | Shifting Twisted Machinery released Battle Rifle 999 | -10/Subcaves | Shifting Twisted Machinery released Sub. Beam Cannon 1009 | -10/Subcaves | Disturbed a concealed Subdweller 1198 | -10/Subcaves | Core integrity fell below 50% 1231 | -10/Subcaves | Discovered new exit (range 10) 1274 | -10/Subcaves | Learned Materials terminal intel 1299 | -10/Subcaves | Entered Recycling 1323 | -9/Recycling | Scanned before Scraplab entrance 1344 | -9/Recycling | Entered Scraplab 1881 | -9/Recycling | Discovered new exit (range 3) 1884 | -9/Recycling | Entered Scraptown 2220 | -9/Scraptown | Visited Symbiants 2275 | -9/Scraptown | Visited CR-KLE's Repair Center 2286 | -9/Scraptown | CR-KLE repaired 5 parts 2316 | -9/Scraptown | Visited SPCMW 2376 | -9/Scraptown | Visited Spacefarers 2456 | -9/Scraptown | Scanned Subdweller tech in exchange for log data 2462 | -9/Scraptown | Learned Factory stockpile data 2482 | -9/Scraptown | Discovered new exit (range 13) 2882 | -9/Scraptown | Visited Fellowship of the Rings 2917 | -9/Scraptown | Visited CPS Storage 2936 | -9/Scraptown | Visited Cyclists 2992 | -9/Scraptown | Visited UFD Registry 2992 | -9/Scraptown | Registered with UFD as "Pulseblaster" 3036 | -9/Scraptown | Entered Cyclist Reading Room 3042 | -9/Scraptown | Learned location of Zion (-7) 3185 | -9/Scraptown | Visited Science Guys 3247 | -9/Scraptown | Visited Curators Association 3319 | -9/Scraptown | Visited Botcube Research 3812 | -9/Scraptown | Visited Supply Room 3836 | -9/Scraptown | Visited Research Penetration Think Tank 3871 | -9/Scraptown | Visited Analyses Database 3908 | -9/Scraptown | Visited A0-MCA Data Center 3917 | -9/Scraptown | Given a B rating by A0-MCA 3920 | -9/Scraptown | Found A0-MCA's Component Scanner 4086 | -9/Scraptown | Visited Derelict Rescue Squad 4099 | -9/Scraptown | Found DRS Beacon 4139 | -9/Scraptown | Visited Observation Area 4335 | -9/Scraptown | Discovered new exit (range 5) 4369 | -9/Scraptown | Found Scrap Suit 5141 | -9/Scraptown | Entered Factory 5141 | -6/Factory | Evolved 8 slots: Propulsion x2, Utility x6 5716 | -6/Factory | Spotted B-75 Beast 5752 | -6/Factory | Core integrity fell below 50% 5766 | -6/Factory | Core integrity fell below 20% 5771 | -6/Factory | Destroyed by H-61 Shepherd with Heavy Assault Cannon Last Messages --------------- Critical hit (Burn: +37). Gauss Rifle destroyed. K-01 Serf collects debris. Scrap Suit destroyed. Knocked back. Acquired 5 matter. Slug penetrates L-41 Fighter. Pressure Siphon disabled. Imp. Deuterium Engine destroyed. G-50 Soldier destroyed. Penetrated by Slug. Phase Shifter destroyed. Knocked back. Slug penetrates L-41 Fighter. L-41 Fighter destroyed. Imp. Targeting Computer destroyed. Knocked back. Gauss Rifle destroyed. Med. Laser destroyed. Critical hit (Blast). Map ----- +----------------------------------------------------+ | ?????????????????????????????????????????????????? | | ?????????????????????????????????????????????????? | | ?????????????????????????????????????????????????? | | ?????????????????????????????????????????????????? | | ?????????????????????????????????????????????????? | | ?????????????????????????????????????????????????? | | ?????????????????????????????????????????????????? | | ??????????????? ???????????????????????????????? | | ?????????????? ??????????????????????????????? | | ??????????????? ""###############???????????????? | | ???????????????? "" ?????????????? | | ????????????????#"" * """ """ #????????????? | | ?????????????????#"% A """"" """"" #????????????? | | ??????????????####" """ """"" #????????????? | | ?????????????? + * BB #????????????? | | ?????????????? # BB % [ #????????????? | | ?????????????? # H=%[ #????????????? | | ?????????????? #?#" k %= ######### ????????? | | ??????????????# #??? " ???????? | | ??????????????# #???? ; = g "%" ???????? | | ??????????????# #???? ; g% g " ???????? | | ??????????????# #????#; = ######### ????????? | | ??????????????# ######;*g% #??????????????????? | | ??????????????# =%% #??????????????????? | | ??????????????# ^ %=!! #??????????????????? | | ??????????????+ @ +??????????????????? | | ??????????????# %""%% #??????????????????? | | ??????????????# """"R" F #??????????????????? | | ??????????????## """" """" ; ?????????????????? | | ???????????????# ! #] !???????????????? | | ???????????????#!% #?###??????????????? | | ?#?????????????# ############??????????????????? | | ? ???????????### ###???????????????????????????? | | " ???????????# #???????????????????????????? | | ???????????# #########???????????????????? | | ???????##### #???????????????????? | | ??? #???????????????????? | | " #????####### #???????????????????? | | " #??????????# # #???????????????????? | | " #??????????# # #### ???????????? | | #??????????######### ???????????? | | #?##########???????# ???????????? | | #?# #???????# ???????????? | | #?# """ ######### ???????????? | | #+### """ + ???????????? | | + """ ###### ###????????????? | | # #????# #????]?????????? | | + " " #????# #??????????????? | | # "Y" #????# #??????????????? | | # """ #????# ######??????????????? | +----------------------------------------------------+ Best States ------------- Heat Dissipation 75 Energy Generation 18 Energy Capacity 250 Matter Stores 300 Matter Capacity 300 Sight Range 16 Terrain Scan Range 16 Terrain Scan Density 10 Base Temperature (-) 200 Armor Coverage 300 Evasion (%) 55 Targeting Accuracy 11 Recoil Reduction 4 Item Schematics ----------------- None Robot Schematics ------------------ G-50 Soldier | -6/Factory | Downloaded Fabricated ------------ Nothing Alien Tech Used ----------------- None Achievements -------------- None Challenges ------------ None Game ------ Seed SniperLegRay Manual? 0 Play Time 00:43:08 Cumulative 61.0 hours Start 2024.10.20 @ 12:03:23 End 2024.10.20 @ 13:03:49 Sessions 1 Manual Loads 0 Difficulty Rogue Special Mode None Game No. 79 Rogue 79 Adventurer 0 Explorer 0 Win Type - Total 1 Types 1/0/0/0/0/0/0/0/0 Lore% 41 Gallery% 46 Achievement% 41 Wizard Run 0 Options --------- Layout 1 ASCII 0 Keyboard 0 Movement Mouse Keybinds 0 Fullscreen 1 Font 32/SmallcapsGlow Map View 50x35 Zoom Use 0% Tactical HUD 0 Map Filters NONE Filters NONE Steam 1 RUN: 25ff529c-736a-49f9-a9f3-b5773a935635